[Event "FIDE WCCC Open-12 2024"]
[Site "Montesilvano"]
[Date "2024.11.25"]
[Round "10.8"]
[White "Torres Rebolledo, Alvaro"]
[Black "Gao, Heye"]
[Result "0-1"]
[ECO "C54"]
[WhiteElo "2216"]
[BlackElo "1933"]
[Annotator "RC"]
[PlyCount "138"]
[EventDate "2024.11.18"]
[EventType "swiss"]
[EventCountry "ITA"]
[SourceTitle "playchess.com"]
[Source "ChessBase"]
[SourceQuality "1"]
[TimeControl "5400+30"]

1. e4 {[%emt 0:00:01]} e5 {[%emt 0:00:16]} 2. Nf3 {[%emt 0:00:06]} Nc6 {[%emt 0:00:14]} 3. Bc4 {[%emt 0:00:17]} Bc5 {[%emt 0:00:08]} 4. c3 {[%emt 0:00:13]} Nf6 {[%emt 0:00:18]} 5. d3 {[%emt 0:00:09]} O-O {[%emt 0:00:08]} 6. O-O {[%emt 0:00:07]} d5 {[%emt 0:00:16]} 7. exd5 {[%emt 0:00:27]} Nxd5 {[%emt 0:00:05]} 8. Re1 {[%emt 0:00:20]} Bg4 {[%emt 0:01:09]} 9. h3 {[%emt 0:01:26]} Bh5 {[%emt 0:00:21]} 10. Nbd2 {[%emt 0:00:31]} Nb6 {[%emt 0:00:21]} 11. Bb3 {[%emt 0:01:16]} Qxd3 {[%emt 0:00:40]} 12. Nxe5 {[%emt 0:00:45]} Qf5 {[%emt 0:00:07]} 13. Nef3 {[%emt 0:00:20]} Rad8 {[%emt 0:00:37]} 14. Qe2 {[%emt 0:07:49]} Nd5 {[%emt 0:05:31]} 15. Qe4 {[%emt 0:09:08]} Qxe4 {[%emt 0:05:49]} 16. Nxe4 {[%emt 0:01:28]} Bb6 {[%emt 0:07:10]} 17. Nh4 {[%emt 0:06:08]} Na5 {[%emt 0:03:40]} 18. Bxd5 {[%emt 0:08:17]} Rxd5 {[%emt 0:00:16]} 19. b3 {[%emt 0:00:08]} Nc6 {[%emt 0:14:35]} 20. Ng3 {[%emt 0:16:02]} Bg6 {[%emt 0:10:50]} 21. Bf4 {[%emt 0:01:42]} Bd3 {[%emt 0:05:12]} 22. Rad1 {[%emt 0:04:18]} f6 {[%emt 0:01:50]} 23. Be3 {[%emt 0:03:19]} Ba5 {[%emt 0:05:14]} 24. b4 {[%emt 0:00:21]} Bb6 {[%emt 0:00:35]} 25. Bxb6 {[%emt 0:02:05]} axb6 {[%emt 0:04:23]} 26. Nhf5 {[%emt 0:07:13]} Rfd8 {[%emt 0:05:05]} 27. Ne7+ {[%emt 0:02:04]} Nxe7 {[%emt 0:00:07]} 28. Rxe7 {[%emt 0:00:14]} R5d7 {[%emt 0:02:01]} 29. Rxd7 {[%emt 0:01:48]} Rxd7 {[%emt 0:00:05]} 30. f4 {[%emt 0:00:46]} Kf7 {[%emt 0:02:45]} 31. Kf2 {[%emt 0:00:10]} Rd5 {[%emt 0:01:48]} 32. Ne2 {[%emt 0:01:00]} c5 {[%emt 0:01:08]} 33. a3 {[%emt 0:00:34]} Bc4 {[%emt 0:02:10]} 34. Rxd5 {[%emt 0:00:51]} Bxd5 {[%emt 0:00:05]} 35. g3 {[%emt 0:00:08]} Ke6 {[%emt 0:03:12]} 36. Ke3 {[%emt 0:00:15]} Bg2 {[%emt 0:00:39]} 37. h4 {[%emt 0:00:06]} Bf1 {[%emt 0:02:57]} 38. Ng1 {[%emt 0:01:13]} Bg2 {[%emt 0:01:51]} 39. c4 {[%emt 0:08:50]} Bf1 {[%emt 0:03:48]} 40. Ne2 {[%emt 0:00:18]} Bxe2 {[%emt 0:04:18]} 41. Kxe2 {[%emt 0:00:21]} cxb4 {[%emt 0:00:32]} 42. axb4 {[%emt 0:00:06]} Kf5 {[%emt 0:00:07]} 43. Ke3 {[%emt 0:01:26]} Kg4 {[%emt 0:00:38]} 44. Kf2 {[%emt 0:00:17]} b5 {[%emt 0:02:38]} 45. c5 {[%emt 0:02:32]} Kh3 {[%emt 0:02:57]} 46. Kf3 {[%emt 0:00:08]} f5 {[%emt 0:00:04]} 47. Kf2 {[%emt 0:01:18]} h5 {[%emt 0:00:40]} 48. Kf3 {[%emt 0:00:05]} Kh2 {[%emt 0:00:05]} 49. Kf2 {[%emt 0:00:04]} g6 {[%emt 0:00:45]} 50. Kf3 {[%emt 0:02:46]} Kg1 {[%emt 0:00:33]} 51. Ke3 {[%emt 0:02:00]} Kg2 {[%emt 0:00:12]} 52. Kd4 {[%emt 0:00:05]} Kxg3 {[%emt 0:00:06]} 53. Ke5 {[%emt 0:00:13]} Kxh4 {[%emt 0:00:18]} 54. Kd6 {[%emt 0:00:05]} Kg4 {[%emt 0:00:06]} 55. Kc7 {[%emt 0:00:04]} h4 {[%emt 0:00:06]} 56. Kxb7 {[%emt 0:00:10]} h3 {[%emt 0:00:04]} 57. c6 {[%emt 0:00:08]} h2 {[%emt 0:00:04]} 58. c7 {[%emt 0:00:02]} h1=Q+ {[%emt 0:00:07]} 59. Kb8 {[%emt 0:00:01]} Qc6 {[%emt 0:00:22]} 60. c8=Q {[%emt 0:00:05]} Qxc8+ {[%emt 0:00:10]} 61. Kxc8 {[%emt 0:00:08]} Kxf4 {[%emt 0:00:18]} 62. Kb7 {[%emt 0:00:06]} g5 {[%emt 0:00:21]} 63. Kb6 {[%emt 0:00:11]} g4 {[%emt 0:00:07]} 64. Kxb5 {[%emt 0:00:02]} g3 {[%emt 0:00:04]} 65. Ka6 {[%emt 0:00:03]} g2 {[%emt 0:00:05]} 66. b5 {[%emt 0:00:02]} g1=Q {[%emt 0:00:08]} 67. b6 {[%emt 0:00:03]} Qa1+ {[%emt 0:00:16]} 68. Kb7 {[%emt 0:00:04]} Ke5 {[%emt 0:00:06]} 69. Kc8 {[%emt 0:00:06]} Kd6 {[%emt 0:00:09]} 0-1

[Event "FIDE WCCC Open-12 2024"]
[Site "Montesilvano"]
[Date "2024.11.25"]
[Round "10.9"]
[White "Stepanyan, Davit"]
[Black "Abdsattar, Alisher"]
[Result "0-1"]
[ECO "E99"]
[WhiteElo "2011"]
[BlackElo "2082"]
[Annotator "RC"]
[PlyCount "109"]
[EventDate "2024.11.18"]
[EventType "swiss"]
[EventCountry "ITA"]
[SourceTitle "playchess.com"]
[Source "ChessBase"]
[SourceQuality "1"]
[TimeControl "5400+30"]

1. d4 {[%emt 0:00:04]} Nf6 {[%emt 0:00:11]} 2. c4 {[%emt 0:00:03]} g6 {[%emt 0:00:05]} 3. Nc3 {[%emt 0:00:09]} Bg7 {[%emt 0:00:03]} 4. e4 {[%emt 0:00:08]} d6 {[%emt 0:00:03]} 5. Nf3 {[%emt 0:00:10]} O-O {[%emt 0:00:07]} 6. Be2 {[%emt 0:00:09]} e5 {[%emt 0:00:04]} 7. O-O {[%emt 0:00:12]} Nc6 {[%emt 0:00:04]} 8. d5 {[%emt 0:00:04]} Ne7 {[%emt 0:00:03]} 9. Ne1 {[%emt 0:00:13]} Nd7 {[%emt 0:00:35]} 10. f3 {[%emt 0:02:46]} f5 {[%emt 0:00:06]} 11. g4 {[%emt 0:00:05]} Kh8 {[%emt 0:04:10]} 12. Bd2 {[%emt 0:02:12]} Ng8 {[%emt 0:02:09]} 13. Ng2 {[%emt 0:01:30]} Bf6 {[%emt 0:08:12]} 14. exf5 {[%emt 0:12:01]} gxf5 {[%emt 0:00:08]} 15. gxf5 {[%emt 0:00:07]} Ne7 {[%emt 0:06:47]} 16. Ne3 {[%emt 0:00:47]} Bg5 {[%emt 0:12:04]} 17. Ne4 {[%emt 0:04:07]} Bf4 {[%emt 0:07:09]} 18. Ng3 {[%emt 0:01:49]} Nf6 {[%emt 0:01:46]} 19. Bd3 {[%emt 0:04:25]} Qe8 {[%emt 0:08:17]} 20. Ng2 {[%emt 0:05:07]} Bxd2 {[%emt 0:09:32]} 21. Qxd2 {[%emt 0:00:07]} Nh5 {[%emt 0:00:46]} 22. Nxh5 {[%emt 0:01:45]} Qxh5 {[%emt 0:00:06]} 23. f4 {[%emt 0:00:18]} Bxf5 {[%emt 0:02:25]} 24. fxe5 {[%emt 0:05:40]} dxe5 {[%emt 0:05:14]} 25. Rae1 {[%emt 0:04:49]} Ng6 {[%emt 0:01:53]} 26. Bxf5 {[%emt 0:11:10]} Rxf5 {[%emt 0:00:03]} 27. Rxf5 {[%emt 0:00:42]} Qxf5 {[%emt 0:00:01]} 28. Qe2 {[%emt 0:01:22]} Rg8 {[%emt 0:01:21]} 29. Kh1 {[%emt 0:03:11]} Rf8 {[%emt 0:02:35]} 30. Rd1 {[%emt 0:02:01]} e4 {[%emt 0:12:32]} 31. c5 {[%emt 0:03:57]} Ne5 {[%emt 0:00:43]} 32. Ne3 {[%emt 0:01:19]} Qh3 {[%emt 0:01:48]} 33. Rf1 {[%emt 0:01:03]} Nf3 {[%emt 0:03:50]} 34. b4 {[%emt 0:05:47]} Rg8 {[%emt 0:02:08]} 35. d6 {[%emt 0:01:58]} cxd6 {[%emt 0:00:30]} 36. cxd6 {[%emt 0:27:13]} Rg6 {[%emt 0:02:30]} 37. Rc1 {[%emt 0:00:00]} Rxd6 {[%emt 0:03:21]} 38. Qb2+ {[%emt 0:00:00]} Kg8 {[%emt 0:00:14]} 39. Qg2+ {[%emt 0:00:00]} Qxg2+ {[%emt 0:00:04]} 40. Kxg2 {[%emt 0:00:00]} Rd7 {[%emt 0:04:11]} 41. Rc4 {[%emt 0:00:00]} Nd2 {[%emt 0:00:22]} 42. Rc8+ {[%emt 0:00:00]} Kf7 {[%emt 0:00:14]} 43. Kg3 {[%emt 0:00:00]} Ke6 {[%emt 0:00:29]} 44. Re8+ {[%emt 0:00:00]} Kd6 {[%emt 0:01:26]} 45. h4 {[%emt 0:00:00]} Kc6 {[%emt 0:00:49]} 46. a4 {[%emt 0:00:00]} Rf7 {[%emt 0:00:50]} 47. Ng4 {[%emt 0:00:00]} Kd7 {[%emt 0:00:37]} 48. Rh8 {[%emt 0:01:48]} Ke7 {[%emt 0:00:52]} 49. b5 {[%emt 0:02:39]} Nc4 {[%emt 0:00:36]} 50. Nh6 {[%emt 0:00:55]} Rf3+ {[%emt 0:00:40]} 51. Kh2 {[%emt 0:01:36]} e3 {[%emt 0:00:27]} 52. Rxh7+ {[%emt 0:00:14]} Kd6 {[%emt 0:00:16]} 53. Rh8 {[%emt 0:00:44]} e2 {[%emt 0:00:11]} 54. Re8 {[%emt 0:00:06]} Ne3 {[%emt 0:00:41]} 55. Nf5+ {[%emt 0:00:55]} 0-1

[Event "FIDE WCCC Open-12 2024"]
[Site "Montesilvano"]
[Date "2024.11.25"]
[Round "10.10"]
[White "Petroff, Vlad"]
[Black "Wijerathna, Vinuka Dihain"]
[Result "1/2-1/2"]
[ECO "D37"]
[WhiteElo "2079"]
[BlackElo "2004"]
[Annotator "RC"]
[PlyCount "128"]
[EventDate "2024.11.18"]
[EventType "swiss"]
[EventCountry "ITA"]
[SourceTitle "playchess.com"]
[Source "ChessBase"]
[SourceQuality "1"]
[TimeControl "5400+30"]

1. d4 {[%emt 0:00:04]} Nf6 {[%emt 0:00:49]} 2. Nf3 {[%emt 0:00:11]} d5 {[%emt 0:00:20]} 3. c4 {[%emt 0:00:41]} e6 {[%emt 0:00:07]} 4. Nc3 {[%emt 0:00:26]} a6 {[%emt 0:00:07]} 5. cxd5 {[%emt 0:00:28]} exd5 {[%emt 0:00:05]} 6. Bg5 {[%emt 0:00:14]} Be6 {[%emt 0:00:07]} 7. Bxf6 {[%emt 0:01:02]} Qxf6 {[%emt 0:01:23]} 8. Qb3 {[%emt 0:00:57]} Ra7 {[%emt 0:00:08]} 9. e3 {[%emt 0:04:12]} Qd8 {[%emt 0:04:51]} 10. Be2 {[%emt 0:03:35]} Bd6 {[%emt 0:02:59]} 11. O-O {[%emt 0:02:44]} O-O {[%emt 0:01:23]} 12. a3 {[%emt 0:14:42]} Nd7 {[%emt 0:04:34]} 13. Rfd1 {[%emt 0:04:08]} c6 {[%emt 0:04:44]} 14. Qc2 {[%emt 0:04:59]} f5 {[%emt 0:05:16]} 15. Bd3 {[%emt 0:07:37]} Qe7 {[%emt 0:11:22]} 16. Rac1 {[%emt 0:06:18]} g6 {[%emt 0:05:47]} 17. Re1 {[%emt 0:10:31]} b5 {[%emt 0:08:56]} 18. Ne2 {[%emt 0:09:15]} Rc7 {[%emt 0:00:28]} 19. b4 {[%emt 0:02:19]} Ra8 {[%emt 0:09:34]} 20. Qb2 {[%emt 0:07:31]} Bf7 {[%emt 0:03:16]} 21. Rc2 {[%emt 0:04:06]} a5 {[%emt 0:11:30]} 22. Rec1 {[%emt 0:01:57]} axb4 {[%emt 0:02:22]} 23. axb4 {[%emt 0:01:05]} Ra4 {[%emt 0:04:29]} 24. Rxc6 {[%emt 0:00:46]} Rxb4 {[%emt 0:01:49]} 25. Qxb4 {[%emt 0:02:41]} Rxc6 {[%emt 0:00:13]} 26. Qxb5 {[%emt 0:00:03]} Rxc1+ {[%emt 0:00:08]} 27. Nxc1 {[%emt 0:00:02]} f4 {[%emt 0:00:00]} 28. exf4 {[%emt 0:01:25]} Bxf4 {[%emt 0:00:02]} 29. Ne2 {[%emt 0:11:01]} Bd6 {[%emt 0:00:22]} 30. Nc3 {[%emt 0:00:00]} Nf6 {[%emt 0:02:20]} 31. Bf1 {[%emt 0:00:00]} Qc7 {[%emt 0:03:01]} 32. Qb3 {[%emt 0:00:00]} Kg7 {[%emt 0:01:04]} 33. h3 {[%emt 0:00:00]} Ne4 {[%emt 0:02:09]} 34. Nb5 {[%emt 0:00:00]} Qb6 {[%emt 0:00:43]} 35. Qe3 {[%emt 0:00:00]} Bb8 {[%emt 0:01:53]} 36. Nc3 {[%emt 0:00:00]} Nf6 {[%emt 0:03:25]} 37. g3 {[%emt 0:01:34]} Qb4 {[%emt 0:02:20]} 38. Ne2 {[%emt 0:01:27]} h6 {[%emt 0:01:27]} 39. Ne5 {[%emt 0:00:24]} Be8 {[%emt 0:00:32]} 40. Nf4 {[%emt 0:00:45]} Qe7 {[%emt 0:00:17]} 41. Bg2 {[%emt 0:00:21]} Qd6 {[%emt 0:02:35]} 42. Qb3 {[%emt 0:00:36]} Bc7 {[%emt 0:01:09]} 43. Nxd5 {[%emt 0:00:33]} Nxd5 {[%emt 0:00:08]} 44. Qxd5 {[%emt 0:00:11]} Qxd5 {[%emt 0:00:44]} 45. Bxd5 {[%emt 0:00:01]} Bb6 {[%emt 0:00:05]} 46. Nf3 {[%emt 0:00:11]} Kf6 {[%emt 0:00:12]} 47. Be4 {[%emt 0:00:19]} g5 {[%emt 0:00:41]} 48. g4 {[%emt 0:00:17]} h5 {[%emt 0:00:34]} 49. Kg2 {[%emt 0:01:16]} hxg4 {[%emt 0:00:33]} 50. hxg4 {[%emt 0:00:06]} Bd7 {[%emt 0:00:35]} 51. Kg3 {[%emt 0:00:36]} Bc7+ {[%emt 0:00:21]} 52. Kh3 {[%emt 0:00:34]} Bb5 {[%emt 0:00:19]} 53. Kg2 {[%emt 0:01:30]} Bd7 {[%emt 0:00:01]} 54. Kh3 {[%emt 0:00:31]} Bb5 {[%emt 0:00:06]} 55. Nd2 {[%emt 0:00:49]} Ba5 {[%emt 0:01:26]} 56. Nb3 {[%emt 0:00:29]} Bc3 {[%emt 0:00:25]} 57. d5 {[%emt 0:00:31]} Ke5 {[%emt 0:00:10]} 58. Bf3 {[%emt 0:00:31]} Bb4 {[%emt 0:00:40]} 59. Kg3 {[%emt 0:00:32]} Bc4 {[%emt 0:00:44]} 60. Nc1 {[%emt 0:00:12]} Bd2 {[%emt 0:00:34]} 61. Ne2 {[%emt 0:00:09]} Bxe2 {[%emt 0:00:15]} 62. Bxe2 {[%emt 0:00:01]} Kxd5 {[%emt 0:00:12]} 63. Kf3 {[%emt 0:00:09]} Ke5 {[%emt 0:00:04]} 64. Bd3 {[%emt 0:00:07]} Bc3 {[%emt 0:03:35]} 1/2-1/2

[Event "FIDE WCCC Open-12 2024"]
[Site "Montesilvano"]
[Date "2024.11.25"]
[Round "10.11"]
[White "Sobirov, Afruzbek"]
[Black "Baturin-Vinogradov, Miroslav"]
[Result "1-0"]
[ECO "C47"]
[WhiteElo "1928"]
[BlackElo "2048"]
[Annotator "RC"]
[PlyCount "135"]
[EventDate "2024.11.18"]
[EventType "swiss"]
[EventCountry "ITA"]
[SourceTitle "playchess.com"]
[Source "ChessBase"]
[SourceQuality "1"]
[TimeControl "5400+30"]

1. e4 {[%emt 0:00:02]} e5 {[%emt 0:00:11]} 2. Nf3 {[%emt 0:00:09]} Nc6 {[%emt 0:00:24]} 3. Nc3 {[%emt 0:00:09]} Nf6 {[%emt 0:00:55]} 4. d4 {[%emt 0:00:06]} Bb4 {[%emt 0:02:38]} 5. Nxe5 {[%emt 0:00:08]} Qe7 {[%emt 0:09:58]} 6. Qd3 {[%emt 0:00:12]} Nxe5 {[%emt 0:02:51]} 7. dxe5 {[%emt 0:00:07]} Qxe5 {[%emt 0:01:04]} 8. Bd2 {[%emt 0:00:09]} Qe7 {[%emt 0:06:40]} 9. O-O-O {[%emt 0:02:04]} O-O {[%emt 0:04:06]} 10. f3 {[%emt 0:02:09]} d6 {[%emt 0:06:13]} 11. Kb1 {[%emt 0:01:42]} Be6 {[%emt 0:06:55]} 12. Bg5 {[%emt 0:01:43]} h6 {[%emt 0:08:34]} 13. Bh4 {[%emt 0:01:15]} Rfe8 {[%emt 0:05:23]} 14. Nd5 {[%emt 0:06:43]} Bxd5 {[%emt 0:01:46]} 15. exd5 {[%emt 0:00:11]} Be1 {[%emt 0:03:41]} 16. Bxf6 {[%emt 0:04:25]} Qxf6 {[%emt 0:00:20]} 17. Qb3 {[%emt 0:02:01]} Bf2 {[%emt 0:02:44]} 18. Bd3 {[%emt 0:00:56]} Bb6 {[%emt 0:02:09]} 19. Be4 {[%emt 0:03:39]} a5 {[%emt 0:04:09]} 20. a3 {[%emt 0:01:58]} Bc5 {[%emt 0:04:26]} 21. Qd3 {[%emt 0:01:08]} g6 {[%emt 0:04:28]} 22. g4 {[%emt 0:01:55]} Kg7 {[%emt 0:02:00]} 23. h4 {[%emt 0:00:52]} Qf4 {[%emt 0:05:37]} 24. h5 {[%emt 0:03:29]} g5 {[%emt 0:05:29]} 25. Rhe1 {[%emt 0:03:24]} Bb6 {[%emt 0:02:20]} 26. Re2 {[%emt 0:04:06]} Re5 {[%emt 0:01:55]} 27. Rde1 {[%emt 0:01:30]} Rae8 {[%emt 0:02:56]} 28. Bf5 {[%emt 0:04:04]} Rxe2 {[%emt 0:01:47]} 29. Rxe2 {[%emt 0:00:06]} Rxe2 {[%emt 0:00:23]} 30. Qxe2 {[%emt 0:00:08]} Qd4 {[%emt 0:00:57]} 31. Be4 {[%emt 0:00:31]} Qc5 {[%emt 0:01:12]} 32. Qd3 {[%emt 0:02:50]} c6 {[%emt 0:01:32]} 33. Ka2 {[%emt 0:00:33]} Bd8 {[%emt 0:00:34]} 34. Qb3 {[%emt 0:00:23]} Bb6 {[%emt 0:00:28]} 35. c3 {[%emt 0:01:02]} a4 {[%emt 0:00:39]} 36. Qb4 {[%emt 0:01:22]} cxd5 {[%emt 0:00:34]} 37. Qxc5 {[%emt 0:00:11]} Bxc5 {[%emt 0:00:22]} 38. Bxd5 {[%emt 0:00:06]} b6 {[%emt 0:00:07]} 39. Bc6 {[%emt 0:00:03]} Kf6 {[%emt 0:00:29]} 40. Bxa4 {[%emt 0:00:10]} d5 {[%emt 0:00:27]} 41. Kb1 {[%emt 0:02:46]} Ke5 {[%emt 0:00:32]} 42. Bc6 {[%emt 0:00:18]} Kd6 {[%emt 0:00:27]} 43. Ba8 {[%emt 0:00:08]} Be3 {[%emt 0:00:40]} 44. Kc2 {[%emt 0:00:28]} f6 {[%emt 0:00:37]} 45. a4 {[%emt 0:00:11]} Bf4 {[%emt 0:00:37]} 46. Kd3 {[%emt 0:00:10]} Be5 {[%emt 0:00:39]} 47. b4 {[%emt 0:00:31]} Bg3 {[%emt 0:00:23]} 48. Bb7 {[%emt 0:01:12]} Be1 {[%emt 0:00:23]} 49. Bc8 {[%emt 0:02:37]} Kc7 {[%emt 0:00:34]} 50. Bf5 {[%emt 0:00:16]} Kd6 {[%emt 0:00:39]} 51. Bh7 {[%emt 0:00:07]} Ke5 {[%emt 0:00:29]} 52. Bg8 {[%emt 0:00:14]} Kd6 {[%emt 0:00:29]} 53. Bf7 {[%emt 0:00:32]} Ke5 {[%emt 0:00:26]} 54. a5 {[%emt 0:00:09]} bxa5 {[%emt 0:00:17]} 55. bxa5 {[%emt 0:00:06]} Kd6 {[%emt 0:00:49]} 56. a6 {[%emt 0:00:34]} Bf2 {[%emt 0:00:13]} 57. c4 {[%emt 0:01:26]} dxc4+ {[%emt 0:00:19]} 58. Ke4 {[%emt 0:00:56]} c3 {[%emt 0:00:30]} 59. Bb3 {[%emt 0:00:31]} Kc6 {[%emt 0:01:02]} 60. Kf5 {[%emt 0:00:18]} Bc5 {[%emt 0:00:29]} 61. Kg6 {[%emt 0:00:05]} Bf8 {[%emt 0:00:30]} 62. Kf7 {[%emt 0:00:05]} Bc5 {[%emt 0:00:07]} 63. Kg7 {[%emt 0:00:04]} Kd6 {[%emt 0:00:53]} 64. Kxh6 {[%emt 0:00:08]} Ke7 {[%emt 0:00:17]} 65. Kg6 {[%emt 0:00:04]} Kf8 {[%emt 0:00:42]} 66. h6 {[%emt 0:00:10]} Bd4 {[%emt 0:00:33]} 67. h7 {[%emt 0:00:09]} f5 {[%emt 0:00:05]} 68. a7 {[%emt 0:00:02]} 1-0

[Event "FIDE WCCC Open-12 2024"]
[Site "Montesilvano"]
[Date "2024.11.25"]
[Round "10.12"]
[White "Mamikonyan, Artem T"]
[Black "Bulgak, Damir"]
[Result "1-0"]
[ECO "C54"]
[WhiteElo "1918"]
[BlackElo "2044"]
[Annotator "RC"]
[PlyCount "87"]
[EventDate "2024.11.18"]
[EventType "swiss"]
[EventCountry "ITA"]
[SourceTitle "playchess.com"]
[Source "ChessBase"]
[SourceQuality "1"]
[TimeControl "5400+30"]

1. e4 {[%emt 0:00:07]} e5 {[%emt 0:00:16]} 2. Nf3 {[%emt 0:00:06]} Nc6 {[%emt 0:00:08]} 3. Bc4 {[%emt 0:00:09]} Nf6 {[%emt 0:00:43]} 4. d3 {[%emt 0:00:12]} Bc5 {[%emt 0:00:08]} 5. O-O {[%emt 0:00:30]} d6 {[%emt 0:00:18]} 6. c3 {[%emt 0:00:06]} a6 {[%emt 0:00:20]} 7. Nbd2 {[%emt 0:00:31]} O-O {[%emt 0:01:05]} 8. h3 {[%emt 0:00:26]} Ba7 {[%emt 0:00:08]} 9. Bb3 {[%emt 0:00:29]} h6 {[%emt 0:00:17]} 10. Re1 {[%emt 0:00:08]} Re8 {[%emt 0:00:54]} 11. Nf1 {[%emt 0:00:52]} Be6 {[%emt 1:31:43]} 12. Ng3 {[%emt 0:00:59]} Bxb3 {[%emt 0:00:00]} 13. Qxb3 {[%emt 0:03:03]} Qd7 {[%emt 0:01:00]} 14. Be3 {[%emt 0:00:46]} Bxe3 {[%emt 0:00:00]} 15. Rxe3 {[%emt 0:00:27]} Ne7 {[%emt 0:00:00]} 16. d4 {[%emt 0:01:47]} Ng6 {[%emt 0:00:00]} 17. Rd1 {[%emt 0:00:18]} Qc6 {[%emt 0:00:00]} 18. Kh2 {[%emt 0:19:08]} b5 {[%emt 0:00:00]} 19. Qc2 {[%emt 0:18:58]} Nf4 {[%emt 0:00:00]} 20. Ne2 {[%emt 0:03:32]} Ng6 {[%emt 0:00:00]} 21. Ng3 {[%emt 0:00:15]} a5 {[%emt 0:00:00]} 22. d5 {[%emt 0:00:53]} Qc5 {[%emt 0:00:00]} 23. Ne1 {[%emt 0:00:18]} Rad8 {[%emt 0:00:00]} 24. Nd3 {[%emt 0:00:54]} Qb6 {[%emt 0:00:00]} 25. a4 {[%emt 0:01:16]} c6 {[%emt 0:00:00]} 26. dxc6 {[%emt 0:00:42]} Qxc6 {[%emt 0:00:00]} 27. axb5 {[%emt 0:00:05]} Qxb5 {[%emt 0:00:00]} 28. c4 {[%emt 0:00:21]} Qc6 {[%emt 0:00:00]} 29. Qc3 {[%emt 0:01:15]} Nf4 {[%emt 0:00:00]} 30. Qxa5 {[%emt 0:02:25]} Qxc4 {[%emt 0:01:15]} 31. Nxe5 {[%emt 0:03:02]} Qc2 {[%emt 0:00:55]} 32. Rd2 {[%emt 0:00:18]} Qc1 {[%emt 0:05:26]} 33. Nd3 {[%emt 0:00:23]} Nxd3 {[%emt 0:00:00]} 34. Rexd3 {[%emt 0:00:23]} Qe1 {[%emt 0:00:45]} 35. Re3 {[%emt 0:03:16]} Qb1 {[%emt 0:00:03]} 36. Rde2 {[%emt 0:05:17]} Rc8 {[%emt 0:02:13]} 37. Qd2 {[%emt 0:01:52]} Red8 {[%emt 0:00:51]} 38. Nf5 {[%emt 0:01:23]} Rc1 {[%emt 0:00:17]} 39. Re1 {[%emt 0:00:05]} Rc2 {[%emt 0:00:41]} 40. Qa5 {[%emt 0:00:20]} Qxb2 {[%emt 0:00:10]} 41. Qxd8+ {[%emt 0:00:16]} Kh7 {[%emt 0:00:00]} 42. Rg3 {[%emt 0:00:22]} Nh5 {[%emt 0:00:06]} 43. Ne7 {[%emt 0:00:23]} Nf6 {[%emt 0:00:08]} 44. Qf8 {[%emt 0:00:16]} 1-0

[Event "FIDE WCCC Open-12 2024"]
[Site "Montesilvano"]
[Date "2024.11.25"]
[Round "10.13"]
[White "Golubovic, Erik"]
[Black "Chia, Yu Zhe Ashton"]
[Result "1-0"]
[ECO "A70"]
[WhiteElo "2147"]
[BlackElo "2252"]
[Annotator "RC"]
[PlyCount "79"]
[EventDate "2024.11.18"]
[EventType "swiss"]
[EventCountry "ITA"]
[SourceTitle "playchess.com"]
[Source "ChessBase"]
[SourceQuality "1"]
[TimeControl "5400+30"]

1. d4 {[%emt 0:00:03]} Nf6 {[%emt 0:00:03]} 2. Nf3 {[%emt 0:00:25]} c5 {[%emt 0:00:23]} 3. d5 {[%emt 0:00:11]} e6 {[%emt 0:00:05]} 4. c4 {[%emt 0:00:16]} exd5 {[%emt 0:00:03]} 5. cxd5 {[%emt 0:00:08]} d6 {[%emt 0:00:03]} 6. Nc3 {[%emt 0:00:31]} g6 {[%emt 0:00:07]} 7. h3 {[%emt 0:00:22]} Bg7 {[%emt 0:00:13]} 8. e4 {[%emt 0:00:22]} O-O {[%emt 0:00:05]} 9. Be3 {[%emt 0:01:09]} a6 {[%emt 0:07:45]} 10. a4 {[%emt 0:00:20]} Re8 {[%emt 0:00:37]} 11. Nd2 {[%emt 0:00:45]} Nxe4 {[%emt 0:13:38]} 12. Ncxe4 {[%emt 0:02:24]} f5 {[%emt 0:00:08]} 13. Nxd6 {[%emt 0:01:09]} Qxd6 {[%emt 0:01:00]} 14. Nc4 {[%emt 0:00:17]} Qf6 {[%emt 0:05:10]} 15. g3 {[%emt 0:06:54]} b6 {[%emt 0:20:27]} 16. Bg2 {[%emt 0:04:55]} Bb7 {[%emt 0:00:07]} 17. O-O {[%emt 0:02:28]} Nd7 {[%emt 0:00:11]} 18. h4 {[%emt 0:13:56]} h6 {[%emt 0:13:31]} 19. Qd2 {[%emt 0:02:05]} Kh7 {[%emt 0:00:33]} 20. Bf4 {[%emt 0:01:11]} Bf8 {[%emt 0:06:44]} 21. Rad1 {[%emt 0:12:46]} Rac8 {[%emt 0:13:18]} 22. Rfe1 {[%emt 0:06:53]} b5 {[%emt 0:04:06]} 23. Re6 {[%emt 0:05:27]} Qf7 {[%emt 0:01:05]} 24. Nd6 {[%emt 0:07:08]} Bxd6 {[%emt 0:00:02]} 25. Bxd6 {[%emt 0:00:24]} Nf6 {[%emt 0:03:43]} 26. Rde1 {[%emt 0:13:00]} Ne4 {[%emt 0:03:31]} 27. Bxe4 {[%emt 0:02:45]} fxe4 {[%emt 0:00:02]} 28. R1xe4 {[%emt 0:01:49]} Rxe6 {[%emt 0:00:33]} 29. Rxe6 {[%emt 0:03:13]} Re8 {[%emt 0:02:31]} 30. Qe2 {[%emt 0:03:23]} Rxe6 {[%emt 0:00:32]} 31. dxe6 {[%emt 0:02:21]} Qe8 {[%emt 0:00:16]} 32. e7 {[%emt 0:01:33]} h5 {[%emt 0:00:51]} 33. f3 {[%emt 0:01:49]} Bc6 {[%emt 0:02:08]} 34. Bxc5 {[%emt 0:01:03]} Qf7 {[%emt 0:00:15]} 35. Bd4 {[%emt 0:01:49]} Qc4 {[%emt 0:01:29]} 36. Qe5 {[%emt 0:02:36]} Qc1+ {[%emt 0:00:50]} 37. Kg2 {[%emt 0:00:22]} Qd2+ {[%emt 0:01:00]} 38. Kh3 {[%emt 0:00:47]} Bd7+ {[%emt 0:00:36]} 39. g4 {[%emt 0:00:03]} hxg4+ {[%emt 0:00:34]} 40. Kg3 {[%emt 0:00:34]} 1-0